[Event "Late-Titled-Tuesday-Blitz-January-23-2024"]
[Site "Chess.com"]
[Date "2024.01.23"]
[Round "6"]
[White "Rodalquilar"]
[Black "Chessdreamer2020"]
[Result "1-0"]
[WhiteElo "2755"]
[BlackElo "2551"]
[TimeControl "180+1"]
[EndTime "15:05:21 PST"]
[Termination "Rodalquilar won by resignation"]

1. d4 {[%clk 0:03:00.9]} 1... d6 {[%clk 0:02:59.8]} 2. e4 {[%clk 0:03:00.6]}
2... Nf6 {[%clk 0:02:59.3]} 3. Nc3 {[%clk 0:03:01.1]} 3... c6 {[%clk 0:02:59.7]}
4. Nf3 {[%clk 0:02:59.2]} 4... Bg4 {[%clk 0:02:59.2]} 5. Be2 {[%clk 0:02:57.5]}
5... e6 {[%clk 0:02:59.6]} 6. O-O {[%clk 0:02:57]} 6... d5 {[%clk 0:02:59.1]} 7.
exd5 {[%clk 0:02:54.7]} 7... cxd5 {[%clk 0:02:58.6]} 8. Ne5 {[%clk 0:02:47.2]}
8... Bxe2 {[%clk 0:02:56.6]} 9. Nxe2 {[%clk 0:02:47.3]} 9... Nc6 {[%clk
0:02:55.5]} 10. c3 {[%clk 0:02:46.7]} 10... Bd6 {[%clk 0:02:48.8]} 11. Nd3
{[%clk 0:02:14.5]} 11... O-O {[%clk 0:02:47.9]} 12. Bg5 {[%clk 0:02:10.5]} 12...
h6 {[%clk 0:02:46.8]} 13. Bh4 {[%clk 0:02:10.3]} 13... Be7 {[%clk 0:02:43.2]}
14. h3 {[%clk 0:02:03.8]} 14... Rc8 {[%clk 0:02:42.5]} 15. Bg3 {[%clk
0:02:04.1]} 15... Ne4 {[%clk 0:02:41.7]} 16. Bh2 {[%clk 0:02:04]} 16... Bd6
{[%clk 0:02:40.5]} 17. Bxd6 {[%clk 0:01:50.9]} 17... Qxd6 {[%clk 0:02:41.4]} 18.
Qc1 {[%clk 0:01:43.6]} 18... Na5 {[%clk 0:02:40.1]} 19. Qf4 {[%clk 0:01:38.3]}
19... Qxf4 {[%clk 0:02:39]} 20. Nexf4 {[%clk 0:01:38.9]} 20... Nc4 {[%clk
0:02:38.7]} 21. Rfe1 {[%clk 0:01:38.6]} 21... b5 {[%clk 0:02:32.2]} 22. Re2
{[%clk 0:01:38.2]} 22... a5 {[%clk 0:02:31.6]} 23. a3 {[%clk 0:01:37.4]} 23...
Rb8 {[%clk 0:02:30.7]} 24. g4 {[%clk 0:01:34.2]} 24... Rfc8 {[%clk 0:02:29.8]}
25. Kg2 {[%clk 0:01:32.4]} 25... Kf8 {[%clk 0:02:09.8]} 26. h4 {[%clk
0:01:31.5]} 26... Ke7 {[%clk 0:02:08.8]} 27. f3 {[%clk 0:01:31.6]} 27... Nf6
{[%clk 0:02:08.2]} 28. g5 {[%clk 0:01:31.5]} 28... hxg5 {[%clk 0:02:08.6]} 29.
hxg5 {[%clk 0:01:32.1]} 29... Nh7 {[%clk 0:02:09]} 30. Nxd5+ {[%clk 0:01:26.2]}
30... Kd6 {[%clk 0:02:08.7]} 31. g6 {[%clk 0:01:25.5]} 31... Nf8 {[%clk
0:01:44.4]} 32. N5f4 {[%clk 0:01:18.7]} 32... Nxg6 {[%clk 0:01:44]} 33. Nxg6
{[%clk 0:01:18.8]} 33... fxg6 {[%clk 0:01:44.9]} 34. Nf4 {[%clk 0:01:19]} 34...
Re8 {[%clk 0:01:37.5]} 35. Rae1 {[%clk 0:01:07.6]} 35... g5 {[%clk 0:01:18.9]}
36. Nxe6 {[%clk 0:01:03.7]} 36... b4 {[%clk 0:01:18.2]} 37. axb4 {[%clk
0:01:03.6]} 37... axb4 {[%clk 0:01:17.3]} 38. b3 {[%clk 0:01:04.2]} 38... Na5
{[%clk 0:01:14.2]} 39. c4 {[%clk 0:00:55.4]} 39... Nxb3 {[%clk 0:01:13.6]} 40.
c5+ {[%clk 0:00:53.6]} 40... Kd7 {[%clk 0:01:13.5]} 41. d5 {[%clk 0:00:49.6]}
41... Na5 {[%clk 0:01:02.7]} 42. Nf8+ {[%clk 0:00:20.3]} 42... Rxf8 {[%clk
0:00:59.6]} 43. Re7+ {[%clk 0:00:20.9]} 43... Kd8 {[%clk 0:00:59.5]} 44. c6
{[%clk 0:00:21.4]} 44... Rb5 {[%clk 0:00:35.1]} 45. c7+ {[%clk 0:00:15.8]} 45...
Kc8 {[%clk 0:00:35.2]} 46. d6 {[%clk 0:00:16.4]} 46... Rbf5 {[%clk 0:00:23.7]}
47. Re8+ {[%clk 0:00:15.1]} 47... Kb7 {[%clk 0:00:23.4]} 48. c8=Q+ {[%clk
0:00:15.2]} 1-0

[Event "Late-Titled-Tuesday-Blitz-January-23-2024"]
[Site "Chess.com"]
[Date "2024.01.23"]
[Round "6"]
[White "IlanSchnaider"]
[Black "Defend1r"]
[Result "1-0"]
[WhiteElo "2763"]
[BlackElo "2563"]
[TimeControl "180+1"]
[EndTime "15:05:24 PST"]
[Termination "IlanSchnaider won by checkmate"]

1. e4 {[%clk 0:03:00.9]} 1... c5 {[%clk 0:02:59.5]} 2. Nf3 {[%clk 0:03:00.3]}
2... d6 {[%clk 0:02:59.9]} 3. Bb5+ {[%clk 0:02:57.2]} 3... Nd7 {[%clk
0:02:59.6]} 4. a4 {[%clk 0:02:57.2]} 4... a6 {[%clk 0:02:59.3]} 5. Bc4 {[%clk
0:02:57.3]} 5... e6 {[%clk 0:02:59.8]} 6. Nc3 {[%clk 0:02:57.7]} 6... b6 {[%clk
0:02:46.5]} 7. O-O {[%clk 0:02:57.4]} 7... Ngf6 {[%clk 0:02:45.1]} 8. Re1 {[%clk
0:02:57.4]} 8... Be7 {[%clk 0:02:44.9]} 9. d4 {[%clk 0:02:56.8]} 9... cxd4
{[%clk 0:02:45.1]} 10. Nxd4 {[%clk 0:02:57.1]} 10... Qc7 {[%clk 0:02:44.7]} 11.
Bxe6 {[%clk 0:02:56.5]} 11... fxe6 {[%clk 0:02:39.8]} 12. Nxe6 {[%clk
0:02:56.7]} 12... Qc4 {[%clk 0:02:30.1]} 13. Nxg7+ {[%clk 0:02:48.8]} 13... Kd8
{[%clk 0:02:28.4]} 14. Nd5 {[%clk 0:02:40]} 14... Ne5 {[%clk 0:01:28.6]} 15.
Nxf6 {[%clk 0:02:30.8]} 15... Qf7 {[%clk 0:01:28.5]} 16. Ngh5 {[%clk 0:01:14.6]}
16... h6 {[%clk 0:00:28.4]} 17. f4 {[%clk 0:01:04.5]} 17... Bxf6 {[%clk
0:00:18.3]} 18. fxe5 {[%clk 0:00:27]} 18... Bxe5 {[%clk 0:00:18]} 19. Rf1 {[%clk
0:00:27.6]} 19... Qg6 {[%clk 0:00:14.7]} 20. Nf4 {[%clk 0:00:21.6]} 20... Qxe4
{[%clk 0:00:14.6]} 21. Nd3 {[%clk 0:00:13.1]} 21... Rg8 {[%clk 0:00:11.7]} 22.
Qf3 {[%clk 0:00:08.6]} 22... Qxf3 {[%clk 0:00:10.4]} 23. Rxf3 {[%clk 0:00:09.5]}
23... Bb7 {[%clk 0:00:10.7]} 24. Nxe5 {[%clk 0:00:09.4]} 24... dxe5 {[%clk
0:00:09.2]} 25. Rf2 {[%clk 0:00:06.4]} 25... Rg6 {[%clk 0:00:06.5]} 26. Be3
{[%clk 0:00:06.4]} 26... Ke7 {[%clk 0:00:05.5]} 27. Raf1 {[%clk 0:00:06.8]}
27... Rc8 {[%clk 0:00:05]} 28. Rf7+ {[%clk 0:00:06.6]} 28... Ke6 {[%clk
0:00:04.1]} 29. Rxb7 {[%clk 0:00:07.1]} 29... Kd5 {[%clk 0:00:02.5]} 30. Rxb6
{[%clk 0:00:07.4]} 30... Rg4 {[%clk 0:00:01.6]} 31. Rd1+ {[%clk 0:00:07.2]}
31... Ke4 {[%clk 0:00:01.1]} 32. Rb4+ {[%clk 0:00:06.8]} 32... Kxe3 {[%clk
0:00:02]} 33. Rxg4 {[%clk 0:00:07]} 33... Rxc2 {[%clk 0:00:02.9]} 34. Rg3+
{[%clk 0:00:06.5]} 34... Ke2 {[%clk 0:00:03.2]} 35. Rf1 {[%clk 0:00:07.3]} 35...
Rc5 {[%clk 0:00:02.6]} 36. Rgf3 {[%clk 0:00:06.4]} 36... e4 {[%clk 0:00:02.7]}
37. R1f2+ {[%clk 0:00:04.9]} 37... Kd1 {[%clk 0:00:02.6]} 38. Re3 {[%clk
0:00:04.9]} 38... Rc4 {[%clk 0:00:03.3]} 39. Ree2 {[%clk 0:00:04.1]} 39... Rb4
{[%clk 0:00:02]} 40. b3 {[%clk 0:00:03.8]} 40... Rxb3 {[%clk 0:00:02.1]} 41. Ra2
{[%clk 0:00:03.8]} 41... Rb1 {[%clk 0:00:02.2]} 42. Rf1# {[%clk 0:00:04.1]} 1-0

[Event "Late-Titled-Tuesday-Blitz-January-23-2024"]
[Site "Chess.com"]
[Date "2024.01.23"]
[Round "6"]
[White "PawnEatingZombie"]
[Black "NovakRatko"]
[Result "0-1"]
[WhiteElo "2107"]
[BlackElo "2349"]
[TimeControl "180+1"]
[EndTime "15:05:25 PST"]
[Termination "NovakRatko won by resignation"]

1. e4 {[%clk 0:03:00.9]} 1... d5 {[%clk 0:02:56.5]} 2. exd5 {[%clk 0:03:00.2]}
2... c6 {[%clk 0:02:56.8]} 3. d4 {[%clk 0:02:58.3]} 3... cxd5 {[%clk 0:02:56.8]}
4. Bd3 {[%clk 0:02:58.2]} 4... Nc6 {[%clk 0:02:57]} 5. c3 {[%clk 0:02:58.3]}
5... g6 {[%clk 0:02:56.1]} 6. Bf4 {[%clk 0:02:53.8]} 6... f6 {[%clk 0:02:55.7]}
7. Nf3 {[%clk 0:02:51.6]} 7... Bg7 {[%clk 0:02:56.3]} 8. O-O {[%clk 0:02:50.6]}
8... Bg4 {[%clk 0:02:56.9]} 9. h3 {[%clk 0:02:45]} 9... Bxf3 {[%clk 0:02:57]}
10. Qxf3 {[%clk 0:02:42.9]} 10... e5 {[%clk 0:02:57.4]} 11. dxe5 {[%clk
0:02:42.9]} 11... fxe5 {[%clk 0:02:57.4]} 12. Bg3 {[%clk 0:02:20.3]} 12... e4
{[%clk 0:02:53.1]} 13. Bxe4 {[%clk 0:02:14.9]} 13... dxe4 {[%clk 0:02:52.8]} 14.
Qxe4+ {[%clk 0:02:14]} 14... Nge7 {[%clk 0:02:53]} 15. Na3 {[%clk 0:01:49.8]}
15... Qd5 {[%clk 0:02:41.7]} 16. Qe2 {[%clk 0:01:22.4]} 16... O-O {[%clk
0:02:40.6]} 17. Nb5 {[%clk 0:01:19.9]} 17... Rac8 {[%clk 0:02:30.2]} 18. Rad1
{[%clk 0:01:19.2]} 18... Qh5 {[%clk 0:02:21.3]} 19. Qc4+ {[%clk 0:01:13.2]}
19... Kh8 {[%clk 0:02:20.3]} 20. Nd6 {[%clk 0:01:13.6]} 20... b5 {[%clk
0:01:53.3]} 21. Nf7+ {[%clk 0:01:05.3]} 21... Kg8 {[%clk 0:01:52.7]} 22. Nh6+
{[%clk 0:00:58.3]} 22... Kh8 {[%clk 0:01:52.7]} 23. Nf7+ {[%clk 0:00:58.9]}
23... Rxf7 {[%clk 0:01:14.2]} 24. Qxf7 {[%clk 0:00:59.8]} 24... b4 {[%clk
0:01:14]} 25. Rd7 {[%clk 0:00:46.3]} 25... Nf5 {[%clk 0:00:56.7]} 26. cxb4
{[%clk 0:00:31.6]} 26... Nxb4 {[%clk 0:00:43.4]} 27. Rfd1 {[%clk 0:00:27.1]}
27... h6 {[%clk 0:00:33.1]} 28. Be5 {[%clk 0:00:21.6]} 28... Rg8 {[%clk
0:00:18.8]} 29. g4 {[%clk 0:00:07.2]} 29... Qg5 {[%clk 0:00:17.1]} 30. Bf6
{[%clk 0:00:05.6]} 30... Qxf6 {[%clk 0:00:15.2]} 31. Qxf6 {[%clk 0:00:05.9]}
31... Bxf6 {[%clk 0:00:15.2]} 32. gxf5 {[%clk 0:00:06.5]} 32... gxf5+ {[%clk
0:00:15.2]} 33. Kf1 {[%clk 0:00:07]} 33... Bxb2 {[%clk 0:00:13.9]} 34. Rxa7
{[%clk 0:00:04.4]} 34... Bg7 {[%clk 0:00:11.9]} 35. Rdd7 {[%clk 0:00:04.2]}
35... Nc6 {[%clk 0:00:12.1]} 36. Rac7 {[%clk 0:00:03.2]} 36... Ne5 {[%clk
0:00:12.8]} 37. Re7 {[%clk 0:00:02.2]} 37... Ng6 {[%clk 0:00:12.6]} 38. Red7
{[%clk 0:00:02.4]} 38... Nf4 {[%clk 0:00:13.2]} 39. a4 {[%clk 0:00:01.7]} 39...
Nxh3 {[%clk 0:00:13.8]} 40. a5 {[%clk 0:00:02.1]} 40... Ng5 {[%clk 0:00:13.9]}
41. a6 {[%clk 0:00:02.8]} 41... Ne6 {[%clk 0:00:14.5]} 42. a7 {[%clk 0:00:03.1]}
42... Nxc7 {[%clk 0:00:14.6]} 43. Rxc7 {[%clk 0:00:04]} 43... Ra8 {[%clk
0:00:14.9]} 44. Rb7 {[%clk 0:00:04.6]} 44... Kh7 {[%clk 0:00:15.6]} 45. Ke2
{[%clk 0:00:04.5]} 45... Kg6 {[%clk 0:00:16.2]} 46. Kf3 {[%clk 0:00:05.2]} 46...
Bd4 {[%clk 0:00:16.6]} 47. Ke2 {[%clk 0:00:03.6]} 47... Rxa7 {[%clk 0:00:16.7]}
48. f3 {[%clk 0:00:04.5]} 48... Rxb7 {[%clk 0:00:16.3]} 0-1

[Event "Late-Titled-Tuesday-Blitz-January-23-2024"]
[Site "Chess.com"]
[Date "2024.01.23"]
[Round "6"]
[White "Firouzja2003"]
[Black "Njal28"]
[Result "0-1"]
[WhiteElo "3137"]
[BlackElo "3063"]
[TimeControl "180+1"]
[EndTime "15:05:28 PST"]
[Termination "Njal28 won on time"]

1. d4 {[%clk 0:03:00.9]} 1... Nf6 {[%clk 0:02:59]} 2. Bg5 {[%clk 0:03:00.8]}
2... d5 {[%clk 0:02:58.7]} 3. e3 {[%clk 0:03:01]} 3... c5 {[%clk 0:02:58]} 4.
Bxf6 {[%clk 0:03:01.2]} 4... gxf6 {[%clk 0:02:57.7]} 5. dxc5 {[%clk 0:03:01.8]}
5... e6 {[%clk 0:02:57.4]} 6. Nf3 {[%clk 0:03:02.4]} 6... Bxc5 {[%clk
0:02:57.7]} 7. Be2 {[%clk 0:03:02.8]} 7... Nc6 {[%clk 0:02:56.7]} 8. O-O {[%clk
0:03:02]} 8... O-O {[%clk 0:02:56.8]} 9. Nbd2 {[%clk 0:03:01.8]} 9... f5 {[%clk
0:02:51.9]} 10. c4 {[%clk 0:02:56.4]} 10... dxc4 {[%clk 0:02:48.9]} 11. Qc1
{[%clk 0:02:55.5]} 11... Bd7 {[%clk 0:02:38]} 12. Nxc4 {[%clk 0:02:54.4]} 12...
Qf6 {[%clk 0:02:32.2]} 13. Rd1 {[%clk 0:02:47.8]} 13... Rfd8 {[%clk 0:02:31.6]}
14. Nce5 {[%clk 0:02:32.7]} 14... Nxe5 {[%clk 0:02:31.7]} 15. Qxc5 {[%clk
0:02:32.7]} 15... Nxf3+ {[%clk 0:02:12]} 16. Bxf3 {[%clk 0:02:33.6]} 16... Ba4
{[%clk 0:02:11.4]} 17. b3 {[%clk 0:02:26.5]} 17... Bc6 {[%clk 0:01:49.9]} 18.
Bxc6 {[%clk 0:02:25.5]} 18... bxc6 {[%clk 0:01:50.8]} 19. Qxc6 {[%clk
0:02:21.4]} 19... Rac8 {[%clk 0:01:51.1]} 20. Qb7 {[%clk 0:02:16.6]} 20... Kg7
{[%clk 0:01:39.9]} 21. g3 {[%clk 0:02:04]} 21... Rc2 {[%clk 0:01:32.7]} 22. Qxa7
{[%clk 0:00:40.9]} 22... Rdd2 {[%clk 0:01:27.4]} 23. Rf1 {[%clk 0:00:41.4]}
23... Rxf2 {[%clk 0:00:48.6]} 24. Rxf2 {[%clk 0:00:42.3]} 24... Qxa1+ {[%clk
0:00:48.9]} 25. Kg2 {[%clk 0:00:42.7]} 25... Rxf2+ {[%clk 0:00:49.6]} 26. Kxf2
{[%clk 0:00:43.2]} 26... Qb2+ {[%clk 0:00:50.3]} 27. Kf3 {[%clk 0:00:35.4]}
27... e5 {[%clk 0:00:50.6]} 28. e4 {[%clk 0:00:28.8]} 28... Qxh2 {[%clk
0:00:41.3]} 29. exf5 {[%clk 0:00:28.1]} 29... Qh1+ {[%clk 0:00:37]} 30. Ke2
{[%clk 0:00:20.1]} 30... Qh5+ {[%clk 0:00:26.8]} 31. Ke1 {[%clk 0:00:06.4]}
31... Qh1+ {[%clk 0:00:23.4]} 32. Kd2 {[%clk 0:00:05.9]} 32... Qg2+ {[%clk
0:00:22.8]} 33. Ke1 {[%clk 0:00:05.9]} 33... Qe4+ {[%clk 0:00:17.2]} 34. Kd2
{[%clk 0:00:06.2]} 34... Qg2+ {[%clk 0:00:17.4]} 35. Ke1 {[%clk 0:00:06.2]}
35... Qxg3+ {[%clk 0:00:16.9]} 36. Qf2 {[%clk 0:00:05.8]} 36... Qc3+ {[%clk
0:00:17.7]} 37. Kf1 {[%clk 0:00:05.3]} 37... h5 {[%clk 0:00:16.7]} 38. Kg2
{[%clk 0:00:04.7]} 38... Qc6+ {[%clk 0:00:12.4]} 39. Kh3 {[%clk 0:00:02.7]}
39... Qh1+ {[%clk 0:00:12.2]} 40. Kg3 {[%clk 0:00:02.2]} 40... Kf6 {[%clk
0:00:11.1]} 41. a3 {[%clk 0:00:01.8]} 41... Qe4 {[%clk 0:00:11.2]} 42. a4 {[%clk
0:00:01.2]} 42... Qg4+ {[%clk 0:00:10.5]} 43. Kh2 {[%clk 0:00:01.9]} 43... e4
{[%clk 0:00:11.4]} 44. Qd4+ {[%clk 0:00:01.9]} 44... Kxf5 {[%clk 0:00:11.7]} 45.
Qd7+ {[%clk 0:00:02.5]} 45... Kf4 {[%clk 0:00:11.7]} 46. Qxg4+ {[%clk
0:00:02.9]} 46... hxg4 {[%clk 0:00:12.6]} 47. a5 {[%clk 0:00:03.5]} 47... e3
{[%clk 0:00:12.5]} 48. Kg2 {[%clk 0:00:04.1]} 48... g3 {[%clk 0:00:12.8]} 0-1

[Event "Late-Titled-Tuesday-Blitz-January-23-2024"]
[Site "Chess.com"]
[Date "2024.01.23"]
[Round "6"]
[White "ozates"]
[Black "TigrVShlyape"]
[Result "0-1"]
[WhiteElo "2619"]
[BlackElo "2945"]
[TimeControl "180+1"]
[EndTime "15:05:30 PST"]
[Termination "TigrVShlyape won on time"]

1. e4 {[%clk 0:03:00.4]} 1... c5 {[%clk 0:02:59.2]} 2. Nf3 {[%clk 0:03:00.8]}
2... e6 {[%clk 0:02:59]} 3. d4 {[%clk 0:03:01.1]} 3... cxd4 {[%clk 0:02:59.3]}
4. Nxd4 {[%clk 0:03:02]} 4... a6 {[%clk 0:02:58.9]} 5. c4 {[%clk 0:02:59.1]}
5... Nf6 {[%clk 0:02:53.4]} 6. Nc3 {[%clk 0:02:58.5]} 6... Qc7 {[%clk
0:02:53.8]} 7. a3 {[%clk 0:02:58.3]} 7... b6 {[%clk 0:02:51.7]} 8. Be2 {[%clk
0:02:54.3]} 8... Bb7 {[%clk 0:02:51.8]} 9. f3 {[%clk 0:02:54.4]} 9... Nc6 {[%clk
0:02:50.5]} 10. Be3 {[%clk 0:02:54]} 10... Nxd4 {[%clk 0:02:46.8]} 11. Bxd4
{[%clk 0:02:52.5]} 11... Bc5 {[%clk 0:02:42.1]} 12. O-O {[%clk 0:02:42.5]} 12...
e5 {[%clk 0:02:31]} 13. Bxc5 {[%clk 0:02:39.9]} 13... bxc5 {[%clk 0:02:31.6]}
14. Kh1 {[%clk 0:02:29.2]} 14... O-O {[%clk 0:02:28.8]} 15. b4 {[%clk 0:02:29]}
15... cxb4 {[%clk 0:01:55.9]} 16. axb4 {[%clk 0:02:29.9]} 16... d6 {[%clk
0:01:54.4]} 17. Ra5 {[%clk 0:01:55.2]} 17... Rfb8 {[%clk 0:01:47.5]} 18. Qd2
{[%clk 0:01:48.5]} 18... Bc8 {[%clk 0:01:33.7]} 19. Nd5 {[%clk 0:01:36.8]} 19...
Nxd5 {[%clk 0:00:47.2]} 20. Rxd5 {[%clk 0:01:37.7]} 20... Be6 {[%clk 0:00:46.9]}
21. Rxd6 {[%clk 0:01:31.8]} 21... h6 {[%clk 0:00:26.1]} 22. Rc1 {[%clk
0:01:12.7]} 22... Rb7 {[%clk 0:00:24.7]} 23. c5 {[%clk 0:00:28.4]} 23... Rab8
{[%clk 0:00:23.8]} 24. Rxa6 {[%clk 0:00:14]} 24... Rxb4 {[%clk 0:00:23.5]} 25.
h3 {[%clk 0:00:12.9]} 25... Rb1 {[%clk 0:00:21.1]} 26. Ra1 {[%clk 0:00:11.1]}
26... Rxa1 {[%clk 0:00:20.5]} 27. Rxa1 {[%clk 0:00:12]} 27... Qxc5 {[%clk
0:00:20.8]} 28. Rc1 {[%clk 0:00:11.6]} 28... Qf2 {[%clk 0:00:20.9]} 29. Qe1
{[%clk 0:00:11.9]} 29... Qe3 {[%clk 0:00:20.7]} 30. Bf1 {[%clk 0:00:12]} 30...
Qf4 {[%clk 0:00:20.6]} 31. Rd1 {[%clk 0:00:11.1]} 31... g6 {[%clk 0:00:19.3]}
32. Qd2 {[%clk 0:00:11]} 32... Qh4 {[%clk 0:00:19.3]} 33. Kg1 {[%clk 0:00:10.1]}
33... Kg7 {[%clk 0:00:18.8]} 34. Qf2 {[%clk 0:00:10.4]} 34... Qf4 {[%clk
0:00:18]} 35. Qd2 {[%clk 0:00:09.6]} 35... Qg3 {[%clk 0:00:17.9]} 36. Qf2 {[%clk
0:00:09.9]} 36... Qg5 {[%clk 0:00:18]} 37. Kh2 {[%clk 0:00:08.5]} 37... h5
{[%clk 0:00:16.7]} 38. Qg3 {[%clk 0:00:08.2]} 38... Qf6 {[%clk 0:00:15.8]} 39.
Rc1 {[%clk 0:00:06.3]} 39... h4 {[%clk 0:00:14.2]} 40. Qe1 {[%clk 0:00:05.7]}
40... Qf4+ {[%clk 0:00:14.5]} 41. Kg1 {[%clk 0:00:05.3]} 41... Rb2 {[%clk
0:00:14.6]} 42. Rc5 {[%clk 0:00:01.3]} 42... Bxh3 {[%clk 0:00:13.6]} 43. Qc3
{[%clk 0:00:01]} 43... Rb1 {[%clk 0:00:10.3]} 44. Rxe5 {[%clk 0:00:01.3]} 44...
Kh7 {[%clk 0:00:09.6]} 45. Re7 {[%clk 0:00:01.2]} 45... Bxg2 {[%clk 0:00:08]}
0-1

[Event "Late-Titled-Tuesday-Blitz-January-23-2024"]
[Site "Chess.com"]
[Date "2024.01.23"]
[Round "6"]
[White "Teidi96"]
[Black "only_strong_moves"]
[Result "1/2-1/2"]
[WhiteElo "2418"]
[BlackElo "2526"]
[TimeControl "180+1"]
[EndTime "15:05:32 PST"]
[Termination "Game drawn by repetition"]

1. e4 {[%clk 0:03:00.9]} 1... c5 {[%clk 0:02:59.1]} 2. Nf3 {[%clk 0:02:59.2]}
2... Nc6 {[%clk 0:02:59.6]} 3. d4 {[%clk 0:02:58.9]} 3... cxd4 {[%clk
0:03:00.5]} 4. Nxd4 {[%clk 0:02:59.3]} 4... e5 {[%clk 0:03:01.2]} 5. Nb5 {[%clk
0:02:59]} 5... d6 {[%clk 0:03:01.8]} 6. N1c3 {[%clk 0:02:59]} 6... a6 {[%clk
0:03:02]} 7. Na3 {[%clk 0:02:58.4]} 7... Be6 {[%clk 0:03:02.7]} 8. Nd5 {[%clk
0:02:52.3]} 8... Bxd5 {[%clk 0:03:02.3]} 9. Qxd5 {[%clk 0:02:51.6]} 9... Nf6
{[%clk 0:02:30.8]} 10. Qb3 {[%clk 0:02:48.2]} 10... b5 {[%clk 0:02:21.3]} 11.
Bd3 {[%clk 0:02:41.1]} 11... Rc8 {[%clk 0:02:20.4]} 12. c3 {[%clk 0:02:40.5]}
12... Be7 {[%clk 0:02:15.3]} 13. O-O {[%clk 0:02:40]} 13... O-O {[%clk
0:02:15.7]} 14. Bg5 {[%clk 0:02:39.2]} 14... Nd7 {[%clk 0:02:15.4]} 15. Bxe7
{[%clk 0:02:32.5]} 15... Qxe7 {[%clk 0:02:16.3]} 16. Nc2 {[%clk 0:02:31.6]}
16... Qf6 {[%clk 0:02:03.4]} 17. Ne3 {[%clk 0:02:30.3]} 17... Ne7 {[%clk
0:02:01.2]} 18. a4 {[%clk 0:02:26.3]} 18... Nc5 {[%clk 0:01:58.2]} 19. Qd1
{[%clk 0:02:25.9]} 19... Nxa4 {[%clk 0:01:56.3]} 20. Rxa4 {[%clk 0:02:18.3]}
20... bxa4 {[%clk 0:01:55.9]} 21. Qxa4 {[%clk 0:02:18.8]} 21... Rb8 {[%clk
0:01:48.7]} 22. b4 {[%clk 0:02:17.2]} 22... d5 {[%clk 0:01:42]} 23. Nxd5 {[%clk
0:02:13.8]} 23... Nxd5 {[%clk 0:01:41.2]} 24. exd5 {[%clk 0:02:14.4]} 24... e4
{[%clk 0:01:41.7]} 25. Bxe4 {[%clk 0:02:07.1]} 25... Qxc3 {[%clk 0:01:42]} 26.
Qxa6 {[%clk 0:02:04.2]} 26... Rxb4 {[%clk 0:01:41.5]} 27. Bf3 {[%clk 0:01:59.7]}
27... Rd4 {[%clk 0:01:36.2]} 28. Qe2 {[%clk 0:01:55.7]} 28... g6 {[%clk
0:01:31.4]} 29. h3 {[%clk 0:01:54.5]} 29... Rd2 {[%clk 0:01:30.5]} 30. Qe3
{[%clk 0:01:52.4]} 30... Qc2 {[%clk 0:01:17.8]} 31. Be4 {[%clk 0:01:44.2]} 31...
Qb2 {[%clk 0:01:16.1]} 32. Rb1 {[%clk 0:01:42.2]} 32... Qa2 {[%clk 0:01:11.1]}
33. Qf4 {[%clk 0:01:20]} 33... Rd4 {[%clk 0:00:56.6]} 34. Rb8 {[%clk 0:01:06.9]}
34... Qa7 {[%clk 0:00:24.7]} 35. Rxf8+ {[%clk 0:01:01.9]} 35... Kxf8 {[%clk
0:00:25.6]} 36. Qd6+ {[%clk 0:01:00.5]} 36... Qe7 {[%clk 0:00:24.2]} 37. Qb8+
{[%clk 0:00:53.3]} 37... Kg7 {[%clk 0:00:22.4]} 38. Bf3 {[%clk 0:00:49.7]} 38...
h5 {[%clk 0:00:21.7]} 39. Qb2 {[%clk 0:00:44.2]} 39... Qe5 {[%clk 0:00:20.7]}
40. Qc2 {[%clk 0:00:36.8]} 40... Kh6 {[%clk 0:00:17.2]} 41. Qc1+ {[%clk
0:00:18.9]} 41... g5 {[%clk 0:00:17.5]} 42. g3 {[%clk 0:00:16.9]} 42... Kg7
{[%clk 0:00:15.4]} 43. Kh2 {[%clk 0:00:08.4]} 43... g4 {[%clk 0:00:15.3]} 44.
hxg4 {[%clk 0:00:08.5]} 44... hxg4 {[%clk 0:00:16.2]} 45. Bg2 {[%clk 0:00:09.1]}
45... Qh5+ {[%clk 0:00:12.1]} 46. Kg1 {[%clk 0:00:09.4]} 46... Qe5 {[%clk
0:00:11.4]} 47. Kh2 {[%clk 0:00:09]} 47... Ra4 {[%clk 0:00:11.5]} 48. Qd2 {[%clk
0:00:06.3]} 48... Rd4 {[%clk 0:00:10.3]} 49. Qc1 {[%clk 0:00:05.8]} 1/2-1/2

[Event "Late-Titled-Tuesday-Blitz-January-23-2024"]
[Site "Chess.com"]
[Date "2024.01.23"]
[Round "6"]
[White "ferdipy"]
[Black "Atousa"]
[Result "1-0"]
[WhiteElo "2331"]
[BlackElo "2458"]
[TimeControl "180+1"]
[EndTime "15:05:34 PST"]
[Termination "ferdipy won by checkmate"]

1. e4 {[%clk 0:03:00]} 1... c5 {[%clk 0:02:55.2]} 2. d4 {[%clk 0:02:58.4]} 2...
cxd4 {[%clk 0:02:55.4]} 3. c3 {[%clk 0:02:57.9]} 3... d3 {[%clk 0:02:55.9]} 4.
c4 {[%clk 0:02:57.7]} 4... Nc6 {[%clk 0:02:56.2]} 5. Bxd3 {[%clk 0:02:58.3]}
5... Nf6 {[%clk 0:02:56.7]} 6. Nf3 {[%clk 0:02:59.2]} 6... d6 {[%clk 0:02:56.4]}
7. O-O {[%clk 0:03:00.1]} 7... e6 {[%clk 0:02:54.9]} 8. h3 {[%clk 0:03:00.5]}
8... Be7 {[%clk 0:02:55.3]} 9. Nc3 {[%clk 0:03:01.4]} 9... O-O {[%clk
0:02:55.6]} 10. Be3 {[%clk 0:03:02.3]} 10... Bd7 {[%clk 0:02:51.9]} 11. Qe2
{[%clk 0:03:03.2]} 11... a6 {[%clk 0:02:48.5]} 12. Rac1 {[%clk 0:03:02.8]} 12...
Rc8 {[%clk 0:02:47.8]} 13. a3 {[%clk 0:02:58.8]} 13... Ne5 {[%clk 0:02:47]} 14.
b4 {[%clk 0:02:56.3]} 14... Nxd3 {[%clk 0:02:42]} 15. Qxd3 {[%clk 0:02:57.2]}
15... Qc7 {[%clk 0:02:26.6]} 16. Nd2 {[%clk 0:02:55.7]} 16... Rfd8 {[%clk
0:02:25.4]} 17. f4 {[%clk 0:02:49.6]} 17... Be8 {[%clk 0:02:25.1]} 18. Qe2
{[%clk 0:02:48.6]} 18... Bc6 {[%clk 0:02:05.4]} 19. Qf2 {[%clk 0:02:45.4]} 19...
Nd7 {[%clk 0:01:59.8]} 20. g4 {[%clk 0:02:42.3]} 20... Qb8 {[%clk 0:01:51.5]}
21. Nf3 {[%clk 0:02:22.1]} 21... b5 {[%clk 0:01:45]} 22. cxb5 {[%clk 0:02:19.4]}
22... axb5 {[%clk 0:01:45]} 23. Nd4 {[%clk 0:02:18.7]} 23... Bf6 {[%clk
0:01:36.7]} 24. g5 {[%clk 0:02:10.7]} 24... Be7 {[%clk 0:01:24]} 25. f5 {[%clk
0:02:02.2]} 25... e5 {[%clk 0:01:21.5]} 26. Nxc6 {[%clk 0:01:34.7]} 26... Rxc6
{[%clk 0:01:21.7]} 27. f6 {[%clk 0:00:49.1]} 27... gxf6 {[%clk 0:01:15.1]} 28.
gxf6 {[%clk 0:00:50]} 28... Nxf6 {[%clk 0:01:11.5]} 29. Bg5 {[%clk 0:00:26.8]}
29... d5 {[%clk 0:00:06.8]} 30. Nxd5 {[%clk 0:00:19.1]} 30... Rxc1 {[%clk
0:00:03.8]} 31. Nxe7+ {[%clk 0:00:18.8]} 31... Kf8 {[%clk 0:00:03.7]} 32. Rxc1
{[%clk 0:00:15.1]} 32... Nxe4 {[%clk 0:00:03.1]} 33. Bh6+ {[%clk 0:00:05]} 33...
Kxe7 {[%clk 0:00:02.2]} 34. Qh4+ {[%clk 0:00:05.6]} 34... Nf6 {[%clk 0:00:02.3]}
35. Bg5 {[%clk 0:00:05.9]} 35... Qb6+ {[%clk 0:00:02.6]} 36. Kh2 {[%clk
0:00:05.3]} 36... Rd3 {[%clk 0:00:02.2]} 37. Bxf6+ {[%clk 0:00:04.1]} 37... Qxf6
{[%clk 0:00:01.4]} 38. Rc7+ {[%clk 0:00:04.4]} 38... Ke6 {[%clk 0:00:02]} 39.
Rc6+ {[%clk 0:00:03.9]} 39... Kd5 {[%clk 0:00:01.5]} 40. Qxf6 {[%clk 0:00:03.7]}
40... Rd2+ {[%clk 0:00:02.4]} 41. Kg3 {[%clk 0:00:04]} 41... Rd3+ {[%clk
0:00:03.1]} 42. Kf2 {[%clk 0:00:04.7]} 42... Ke4 {[%clk 0:00:03.7]} 43. Rd6
{[%clk 0:00:04]} 43... Rd2+ {[%clk 0:00:04.6]} 44. Rxd2 {[%clk 0:00:04.3]} 44...
h5 {[%clk 0:00:04.9]} 45. Qf3# {[%clk 0:00:04.9]} 1-0